bitfinex/quotes_SOLUSD_20240826
["timestamp","ask_amount","ask_price","bid_price","bid_amount"]
[1724664835037,0.8218083,159.89,159.84,45.33375875]
[1724664835331,0.8218083,159.89,159.85,65.0]
[1724664835636,0.8218083,159.89,159.87,45.33375875]
[1724664835943,0.8218083,159.89,159.88,65.0]
[1724664837035,0.8218083,159.89,159.88,20.0]
[1724664837207,0.8218083,159.89,159.82,20.0]
[1724664837411,0.8218083,159.89,159.84,45.33375875]
[1724664837732,0.8218083,159.89,159.81,45.33375875]
[1724664837941,0.8218083,159.89,159.8,15.0248]
[1724664838529,6.2553,159.87,159.75,45.33375875]
[1724664838734,6.2553,159.87,159.59,34.93990642]
[1724664838735,6.2559,159.85,159.69,67.55925875]
[1724664838911,1.56459235,159.84,159.69,67.55925875]
[1724664839253,46.56459235,159.84,159.69,16.0816]
[1724664839403,46.56459235,159.84,159.66,45.33375875]
[1724664839606,1.56478315,159.83,159.69,45.33375875]
[1724664839928,6.09215934,159.81,159.7,1.25190696]
[1724664840106,6.4601,159.79,159.66,45.33375875]
[1724664840312,8.02517989,159.79,159.66,45.33375875]
[1724664840514,1.56494234,159.78,159.66,45.33375875]
[1724664840816,6.4601,159.79,159.67,1.25220957]
[1724664841029,6.4601,159.79,159.66,45.33375875]
[1724664841239,6.4601,159.79,159.69,45.33375875]
[1724664841418,6.2032,159.84,159.7,1.25165522]
[1724664841614,7.82138246,159.83,159.69,45.33375875]
[1724664841843,1.56477745,159.82,159.66,45.33375875]
[1724664842039,6.2582,159.79,159.66,45.33375875]
[1724664842236,6.2576,159.81,159.67,1.25214848]
[1724664842417,6.2032,159.84,159.69,45.33375875]
[1724664842618,45.0,159.83,159.66,45.33375875]
[1724664842818,6.2578,159.8,159.67,1.25192585]
[1724664843017,45.0,159.79,159.63,67.55925875]
[1724664843234,45.33375875,159.81,159.64,1.2522011]
[1724664843422,1.56505309,159.78,159.63,61.41535875]
[1724664843619,46.89881184,159.78,159.63,16.0816]
[1724664843821,6.2602,159.74,159.6,45.33375875]
[1724664844145,45.33375875,159.75,159.57,35.9555]
[1724664844146,51.62505875,159.72,159.57,61.28925875]
[1724664844319,1.5658454,159.71,159.57,61.28925875]
[1724664844514,45.33375875,159.69,159.54,45.33375875]
[1724664844732,45.33375875,159.69,159.53,6.1332]
[1724664844733,7.82865105,159.68,159.53,6.1332]
[1724664844932,1.56614324,159.67,159.51,60.68345875]
[1724664845236,6.2649,159.62,159.5,6.53812278]
[1724664845443,1.56677503,159.61,159.45,21.3499]
[1724664845655,1.56679264,159.6,159.45,21.3499]
[1724664845947,51.59835875,159.63,159.46,1.25347309]
[1724664846108,51.59835875,159.63,159.45,21.3499]
[1724664846109,46.56680342,159.62,159.47,45.33375875]
[1724664846313,51.2649,159.62,159.48,1.25344261]
[1724664846541,45.0,159.62,159.49,1.25343692]
[1724664846748,15.306,159.66,159.5,46.58709616]
[1724664847117,6.2642,159.64,159.5,45.33375875]
[1724664847317,45.0,159.63,159.47,45.33375875]
[1724664847517,1.56680563,159.62,159.47,45.33375875]
[1724664847817,15.306,159.66,159.5,45.33375875]
[1724664848015,45.33375875,159.7,159.53,45.33375875]
[1724664848219,45.33375875,159.7,159.54,1.25289766]
[1724664848429,1.56615255,159.69,159.53,45.33375875]
[1724664848840,1.56615255,159.69,159.54,45.0]
[1724664849048,7.82865606,159.68,159.54,45.0]
[1724664849223,6.2638,159.65,159.54,45.0]
[1724664849420,1.566575,159.64,159.5,45.33375875]
[1724664849719,51.59695875,159.67,159.51,45.0]
[1724664849915,16.0606,159.73,159.51,45.0]
[1724664849916,51.62505875,159.72,159.56,45.33375875]
[1724664850144,51.62505875,159.72,159.57,46.25275586]
[1724664850344,51.62505875,159.72,159.58,1.25271576]
[1724664850517,1.56596642,159.71,159.57,45.0]
[1724664850717,45.33375875,159.69,159.5,45.33375875]
[1724664850920,1.56635807,159.68,159.53,45.33375875]
[1724664851139,1.56604398,159.67,159.54,65.0]
[1724664851341,1.56604398,159.7,159.56,45.33375875]
[1724664851547,390.3,159.71,159.59,45.33375875]
[1724664851724,390.3,159.71,159.6,66.25249435]
[1724664852040,6.2913,159.72,159.61,1.25249535]
[1724664852238,6.2913,159.72,159.62,45.33375875]
[1724664852441,390.3,159.74,159.63,66.25225934]
[1724664852650,6.1295,159.78,159.65,45.33375875]
[1724664852651,390.3,159.77,159.65,45.33375875]
[1724664852817,6.1295,159.78,159.68,45.33375875]
[1724664853016,301.53375875,159.83,159.69,21.25181904]
[1724664853017,390.3,159.82,159.69,21.25181904]
[1724664853241,390.3,159.82,159.7,45.0]
[1724664853554,6.1295,159.84,159.74,45.33375875]
[1724664853718,390.3,159.86,159.75,65.0]
[1724664853921,1.56425167,159.85,159.75,65.0]
[1724664854149,390.3,159.88,159.76,1.2514563]
[1724664854357,390.3,159.88,159.77,1.25139942]
[1724664854725,390.3,159.88,159.77,46.58515817]
[1724664855049,1.56398175,159.87,159.78,65.0]
[1724664855251,390.3,159.88,159.79,20.0]
[1724664855549,390.3,159.88,159.75,65.0]
[1724664856676,0.8218083,159.89,159.81,65.0]
[1724664856895,0.8218083,159.89,159.82,1.25088308]
[1724664857047,0.8218083,159.89,159.81,65.0]
[1724664859781,0.8218083,159.89,159.81,20.0]
[1724664859945,6.2548,159.88,159.72,16.4381]
[1724664860144,2.3858329,159.89,159.65,41.6223]
[1724664860145,6.2567,159.83,159.65,41.6223]
[1724664860451,46.89839248,159.82,159.68,65.33375875]
[1724664860664,390.3,159.84,159.68,66.58532141]
[1724664860989,390.3,159.84,159.68,66.58528069]
[1724664861157,390.3,159.84,159.71,45.33375875]
[1724664861664,1.56430643,159.83,159.72,20.0]
[1724664861994,1.56449676,159.82,159.68,45.33375875]
[1724664862183,6.2577,159.81,159.65,66.95605875]
[1724664862365,391.86485083,159.8,159.65,66.95605875]
[1724664862567,437.19859211,159.79,159.65,60.82095875]
[1724664862774,390.3,159.78,159.65,15.4872]
[1724664863072,1.56502638,159.77,159.62,45.33375875]
[1724664863286,1.56514459,159.76,159.62,45.33375875]
[1724664863498,390.3,159.78,159.65,45.33375875]
[1724664863783,390.3,159.78,159.68,45.33375875]
[1724664864084,390.3,159.78,159.69,20.0]
[1724664864599,390.3,159.78,159.7,46.25192057]
[1724664864894,390.3,159.78,159.71,20.0]
[1724664865260,1.56476925,159.77,159.65,45.33375875]
[1724664865465,1.56505761,159.76,159.62,65.33375875]
[1724664865669,1.56509046,159.77,159.62,65.33375875]
[1724664866692,1.56509046,159.77,159.63,20.0]
[1724664866867,1.56509046,159.77,159.63,65.0]
[1724664867069,1.56508918,159.76,159.63,20.0]
[1724664867996,391.86508918,159.76,159.63,20.0]
[1724664868204,391.86508918,159.76,159.64,45.0]
[1724664868505,391.86508918,159.76,159.63,45.0]
[1724664869503,390.3,159.76,159.63,45.0]
[1724664869693,390.3,159.76,159.65,45.33375875]
[1724664869882,390.3,159.76,159.68,45.33375875]
[1724664870083,390.3,159.76,159.69,21.25184075]
[1724664870395,390.3,159.76,159.7,45.0]
[1724664870586,390.3,159.76,159.71,20.0]
[1724664871310,390.3,159.76,159.66,20.0]
[1724664871494,390.3,159.76,159.67,45.0]
[1724664871697,1.565149,159.75,159.62,45.33375875]
[1724664872410,46.89890775,159.75,159.59,51.87842441]
[1724664872593,6.0573,159.74,159.6,20.0]
[1724664872904,6.0573,159.74,159.59,51.87842441]
[1724664873106,1.56528252,159.73,159.59,51.87842441]
[1724664873283,1.56528252,159.73,159.59,45.33375875]
[1724664874109,6.0573,159.74,159.6,21.25239992]
[1724664874416,6.0573,159.74,159.63,45.33375875]
[1724664874586,6.0573,159.74,159.64,45.0]
[1724664874908,6.0573,159.74,159.54,20.0]
[1724664874909,6.2618,159.7,159.54,20.0]
[1724664875119,6.2618,159.7,159.52,61.53455875]
[1724664875120,1.56589355,159.69,159.52,81.53455875]
[1724664875296,1.56589355,159.69,159.52,88.08295968]
[1724664875492,7.82809355,159.69,159.52,88.08295968]
[1724664875909,6.2625,159.68,159.52,88.08295968]
[1724664876212,1.56601203,159.67,159.52,88.08295968]
[1724664877196,45.33375875,159.69,159.54,20.0]
[1724664877500,390.3,159.71,159.56,20.0]
[1724664877700,390.3,159.71,159.57,21.25252644]
[1724664877905,45.33375875,159.69,159.58,45.0]
[1724664878115,1.56601309,159.68,159.59,20.0]
[1724664879200,45.33375875,159.69,159.6,46.25280918]
[1724664879514,45.33375875,159.69,159.6,45.0]
[1724664879825,45.33375875,159.69,159.61,20.0]
[1724664880399,390.3,159.71,159.62,1.25268157]
[1724664880614,390.3,159.71,159.62,45.0]
[1724664880830,45.33375875,159.69,159.61,20.0]
[1724664881123,46.89972931,159.68,159.53,20.0]
[1724664881300,1.56601322,159.67,159.53,20.0]
[1724664881500,1.56589315,159.67,159.53,20.0]
[1724664883226,435.63375875,159.68,159.54,20.0]
[1724664883426,435.63375875,159.68,159.55,20.0]
[1724664883816,1.56584305,159.67,159.55,20.0]
[1724664884016,1.56584305,159.67,159.53,20.0]
[1724664884421,1.56584305,159.67,159.54,45.0]
[1724664884617,1.56584305,159.67,159.55,20.0]
[1724664884830,6.0765,159.66,159.56,45.0]
[1724664885020,6.0765,159.66,159.57,20.0]
[1724664885217,6.0765,159.66,159.58,45.0]
[1724664885411,46.89977646,159.65,159.59,20.0]
[1724664885608,1.56621974,159.64,159.57,20.0]
[1724664886045,1.56621974,159.64,159.5,20.0]
[1724664886635,45.33375875,159.62,159.46,65.33375875]
[1724664886829,1.56653961,159.61,159.46,65.33375875]
[1724664887032,1.56653961,159.61,159.46,45.33375875]
[1724664887234,45.33375875,159.62,159.48,21.25333101]
[1724664887419,45.33375875,159.62,159.48,20.0]
[1724664887820,1.56651747,159.61,159.47,22.23927112]
[1724664888109,1.56651747,159.61,159.47,15.6881]
[1724664888309,1.56651747,159.61,159.48,20.0]
[1724664889220,62.12782461,159.62,159.48,40.0]
[1724664889425,62.12782461,159.62,159.48,20.0]
[1724664889638,62.12782461,159.62,159.48,40.0]
[1724664889938,15.2274,159.62,159.48,40.0]
[1724664890117,15.2274,159.62,159.49,45.33375875]
[1724664890435,15.2274,159.62,159.5,65.0]
[1724664890813,1.56631801,159.61,159.5,20.0]
[1724664891007,1.56631801,159.61,159.48,20.0]
[1724664891227,15.2274,159.62,159.48,40.0]
[1724664892227,15.2274,159.62,159.49,45.0]
[1724664892438,15.2274,159.62,159.5,20.0]
[1724664892645,15.2274,159.62,159.51,45.0]
[1724664892828,15.2274,159.62,159.52,20.0]
[1724664893145,15.2274,159.62,159.53,45.0]
[1724664893329,15.2274,159.62,159.54,20.0]
[1724664894252,15.2274,159.62,159.55,45.0]
[1724664894554,15.2274,159.62,159.56,20.0]
[1724664894840,15.2274,159.62,159.57,45.0]
[1724664895149,15.2274,159.62,159.56,20.0]
[1724664895443,15.2274,159.62,159.57,45.0]
[1724664895751,390.3,159.64,159.58,65.0]
[1724664895922,390.3,159.64,159.58,45.0]
[1724664896115,390.3,159.64,159.59,20.0]
[1724664896332,390.3,159.64,159.6,45.0]
[1724664897128,390.3,159.64,159.61,20.0]
[1724664897321,6.0765,159.66,159.61,20.0]
[1724664899252,6.0765,159.66,159.56,20.0]
[1724664899476,6.0765,159.66,159.57,45.0]
[1724664899661,7.64232311,159.66,159.58,20.0]
[1724664900450,7.64257614,159.66,159.58,20.0]
[1724664900633,7.64257614,159.66,159.51,37.75015225]
[1724664900856,7.64257614,159.66,159.51,57.75015225]
[1724664901667,6.0765,159.66,159.53,20.0]
[1724664901839,6.0765,159.66,159.54,82.75015225]
[1724664902049,6.0765,159.66,159.55,20.0]
[1724664902244,6.0765,159.66,159.56,45.0]
[1724664902847,6.0765,159.66,159.57,79.00281045]
[1724664903054,6.0765,159.66,159.58,46.25255354]
[1724664903378,6.0765,159.66,159.59,20.0]
[1724664903575,6.0765,159.66,159.6,45.0]
[1724664903743,6.0765,159.66,159.61,20.0]
[1724664903944,6.0765,159.66,159.62,45.0]
[1724664904146,6.0765,159.66,159.63,20.0]
[1724664905362,6.0765,159.66,159.55,20.0]
[1724664905567,6.0765,159.66,159.56,45.0]
[1724664905780,7.64239572,159.66,159.51,37.75015225]
[1724664905983,37.75015225,159.64,159.49,6.1403]
[1724664906164,1.56637454,159.63,159.49,26.1403]
[1724664906369,37.75015225,159.63,159.5,3.47486833]
[1724664906578,37.75015225,159.63,159.49,26.1403]
[1724664906771,37.75015225,159.63,159.49,6.1403]
[1724664906983,1.56637283,159.62,159.49,3.47467141]
[1724664907291,37.75015225,159.62,159.49,23.47503485]
[1724664907502,37.75015225,159.62,159.5,3.47503485]
[1724664907702,1.56655126,159.61,159.49,3.47510609]
[1724664907878,53.17365225,159.59,159.48,3.47544837]
[1724664908195,53.17365225,159.59,159.45,3.47577859]
[1724664908381,1.56684487,159.58,159.45,3.47577859]
[1724664908571,53.17365225,159.59,159.45,3.47577859]
[1724664909203,1.56684444,159.58,159.45,23.47577859]
[1724664909515,53.17365225,159.59,159.46,3.47577859]
[1724664909711,15.4235,159.59,159.48,37.75015225]
[1724664910177,15.4235,159.59,159.45,20.0]
[1724664910494,15.4235,159.59,159.46,3.47568504]
[1724664910699,15.4235,159.59,159.46,68.47568504]
[1724664910891,15.4235,159.59,159.47,106.22583729]
[1724664911092,15.4235,159.59,159.48,23.47568504]
[1724664911288,15.4235,159.59,159.49,45.0]
[1724664911601,15.4235,159.59,159.5,20.0]
[1724664911768,15.4235,159.59,159.51,45.0]
[1724664911969,15.4235,159.59,159.52,20.0]
[1724664912279,6.628,159.6,159.53,46.25321036]
[1724664912476,6.628,159.6,159.54,20.0]
[1724664912689,1.56622387,159.66,159.55,46.25303072]
[1724664912690,6.5517,159.66,159.55,46.25303072]
[1724664912866,6.5517,159.66,159.56,57.75015225]
[1724664913073,6.5517,159.66,159.57,45.0]
[1724664913302,6.5517,159.66,159.58,20.0]
[1724664913500,6.5517,159.66,159.59,45.0]
[1724664913808,6.5517,159.66,159.6,20.0]
[1724664913981,8.11782527,159.66,159.6,20.0]
[1724664914176,8.11782527,159.66,159.53,37.75015225]
[1724664914177,52.13127752,159.66,159.54,20.0]
[1724664914492,45.86797752,159.66,159.54,20.0]
[1724664915609,45.86797752,159.66,159.55,45.0]
[1724664915610,6.5517,159.66,159.55,45.0]
[1724664915771,8.1178198,159.66,159.56,20.0]
[1724664915975,6.5517,159.66,159.57,45.0]
[1724664916175,6.5517,159.66,159.58,20.0]
[1724664916378,6.5517,159.66,159.59,45.0]
[1724664916599,6.5517,159.66,159.6,20.0]
[1724664916815,8.11760332,159.66,159.6,20.0]
[1724664917044,6.5517,159.66,159.6,20.0]
[1724664917177,6.5517,159.66,159.61,45.0]
[1724664918200,6.5517,159.66,159.62,20.0]
[1724664918412,6.5517,159.66,159.63,45.0]
[1724664919307,6.5517,159.66,159.64,20.0]
[1724664920097,6.5517,159.66,159.53,37.75015225]
[1724664920339,1.56601883,159.65,159.54,9.52309047]
[1724664920484,6.5517,159.66,159.53,37.75015225]
[1724664920689,6.5517,159.66,159.54,9.52309047]
[1724664920909,6.5517,159.66,159.55,3.47355408]
[1724664921303,1.56606347,159.65,159.55,3.47355408]
[1724664921528,39.31645954,159.64,159.52,3.47355408]
[1724664921731,37.75015225,159.64,159.53,3.47461778]
[1724664921919,6.5517,159.66,159.53,3.47461778]
[1724664922123,6.5517,159.66,159.54,4.72753069]
[1724664922428,6.5517,159.66,159.55,4.72748847]
[1724664922604,6.5517,159.66,159.56,48.47461778]
[1724664922807,6.5517,159.66,159.57,23.47461778]
[1724664923035,6.5517,159.66,159.58,49.72740499]
[1724664923219,6.5517,159.66,159.59,23.47461778]
[1724664923426,6.5517,159.66,159.6,46.25275591]
[1724664923617,6.5517,159.66,159.61,20.0]
[1724664924221,6.5517,159.66,159.53,37.75015225]
[1724664924430,6.5517,159.66,159.54,71.05058919]
[1724664924630,6.5517,159.66,159.55,7.30346781]
[1724664924813,6.5517,159.66,159.56,82.75015225]
[1724664925019,6.5517,159.66,159.57,21.2526371]
[1724664925220,390.3,159.69,159.57,21.2526371]
[1724664925221,390.3,159.69,159.59,60.59635225]
[1724664925426,390.3,159.69,159.6,65.0]
[1724664925738,390.3,159.74,159.6,65.0]
[1724664925921,7.82647482,159.73,159.6,65.0]
[1724664926231,390.3,159.74,159.6,65.0]
[1724664926232,37.75015225,159.72,159.6,45.0]
[1724664926437,39.31593178,159.72,159.6,45.0]
[1724664927013,390.3,159.74,159.61,1.25258614]
[1724664927211,1.56554429,159.73,159.6,45.0]
[1724664927713,1.56554429,159.73,159.61,20.0]
[1724664927912,1.56554429,159.73,159.62,45.0]
[1724664928141,1.56554429,159.73,159.63,20.0]
[1724664928321,1.56555732,159.74,159.64,45.0]
[1724664928642,1.56555732,159.74,159.65,20.0]
[1724664930129,45.66226302,159.75,159.65,20.0]
[1724664930326,45.66226302,159.75,159.66,45.0]
[1724664930647,45.66226302,159.75,159.65,20.0]
[1724664931152,45.66226302,159.75,159.6,20.0]
[1724664932042,45.66226302,159.75,159.61,45.0]
[1724664932346,44.09685225,159.75,159.62,21.25241357]
[1724664932519,44.09685225,159.75,159.63,45.0]
[1724664932722,44.09685225,159.75,159.64,21.25233528]
[1724664933060,6.3467,159.75,159.65,45.0]
[1724664933226,6.3467,159.75,159.66,20.0]
[1724664933540,6.3467,159.75,159.67,46.25213887]
[1724664933748,444.57295225,159.78,159.68,21.25210804]
[1724664934219,444.57295225,159.78,159.69,45.0]
[1724664934545,444.57295225,159.78,159.7,21.25203624]
[1724664934845,444.57295225,159.78,159.71,1.25206181]
[1724664935044,444.57295225,159.78,159.7,20.0]
[1724664935362,1.56486349,159.77,159.7,20.0]
[1724664935535,444.57295225,159.78,159.7,20.0]
[1724664936115,428.05015225,159.78,159.7,20.0]
[1724664936539,37.75015225,159.78,159.7,20.0]
[1724664936717,6.5494,159.79,159.71,45.0]
[1724664936919,37.75015225,159.81,159.72,20.0]
[1724664937122,37.75015225,159.81,159.73,45.0]
[1724664937545,39.3148131,159.81,159.72,20.0]
[1724664937846,44.00995225,159.75,159.66,20.0]
[1724664938145,24.80514898,159.81,159.64,6.2939]
[1724664938146,37.75015225,159.74,159.65,20.0]
[1724664938350,17.20896085,159.81,159.65,20.0]
[1724664938351,1.56511711,159.79,159.65,20.0]
[1724664938651,44.00945225,159.77,159.65,20.0]
[1724664939221,7.82444132,159.76,159.66,46.5675187]
[1724664939422,37.75015225,159.74,159.67,20.0]
[1724664939637,1.56533735,159.73,159.6,6.3496]
[1724664939831,6.2609,159.72,159.6,6.3496]
[1724664940032,45.57710059,159.71,159.64,1.56756903]
[1724664940327,7.82755669,159.7,159.6,6.3496]
[1724664940528,1.56575669,159.7,159.58,15.0387]
[1724664940729,37.75015225,159.66,159.58,15.0387]
[1724664941040,20.0,159.72,159.53,15.9704]
[1724664941041,37.75015225,159.63,159.53,15.9704]
[1724664941225,7.82975472,159.65,159.54,1.25453141]
[1724664941558,37.75015225,159.63,159.54,1.25453141]
[1724664941926,37.75015225,159.63,159.53,15.9704]
[1724664942819,37.75015225,159.63,159.54,20.0]
[1724664943031,37.75015225,159.63,159.55,45.0]
[1724664943268,37.75015225,159.63,159.56,20.0]
[1724664943451,6.4462,159.65,159.56,20.0]
[1724664943661,6.4462,159.65,159.57,46.25290601]
[1724664943869,6.4462,159.65,159.58,1.25290117]
[1724664944035,6.4462,159.65,159.58,20.0]
[1724664945652,6.4462,159.65,159.59,46.25292747]
[1724664946170,6.4462,159.65,159.59,45.0]
[1724664946343,37.75015225,159.66,159.6,20.0]
[1724664946967,8.2112916,159.68,159.6,20.0]
[1724664947269,6.6453,159.68,159.61,1.25282064]
[1724664947651,6.6453,159.68,159.6,20.0]
[1724664947860,6.6453,159.68,159.61,45.0]
[1724664948447,37.75015225,159.69,159.61,45.0]
[1724664948760,434.20435225,159.72,159.62,20.0]
[1724664949080,1.56570019,159.71,159.62,20.0]
[1724664949452,1.56573352,159.7,159.62,20.0]
[1724664949859,7.82753352,159.7,159.62,20.0]
[1724664950056,7.82758494,159.7,159.62,20.0]
[1724664950356,44.01225225,159.69,159.62,20.0]
[1724664950539,7.82852164,159.68,159.54,26.05004316]
[1724664950743,37.75015225,159.66,159.55,1.25428699]
[1724664950965,6.2641,159.64,159.53,15.9704]
[1724664951164,39.31652568,159.63,159.53,15.9704]
[1724664951385,44.01465225,159.63,159.53,15.9704]
[1724664951874,1.56647433,159.66,159.53,15.9704]
[1724664952367,428.05015225,159.67,159.54,1.25299033]
[1724664952570,428.05015225,159.67,159.54,66.2545313]
[1724664952866,428.05015225,159.67,159.55,7.3057251]
[1724664953065,428.05015225,159.67,159.56,65.0]
[1724664953482,390.3,159.67,159.56,65.0]
[1724664954167,396.5625,159.68,159.56,65.0]
[1724664954374,398.12857977,159.68,159.56,65.0]
[1724664954687,1.56607979,159.67,159.56,65.0]
[1724664955096,39.31623204,159.67,159.56,65.0]
[1724664955283,6.2642,159.64,159.56,20.0]
[1724664955484,6.2637,159.65,159.54,20.0]
[1724664955686,1.56643523,159.66,159.54,20.0]
[1724664955989,1.56643523,159.66,159.53,15.9704]
[1724664956778,37.75015225,159.64,159.53,15.9704]
[1724664956984,391.86661802,159.63,159.53,15.9704]
[1724664957200,6.265,159.62,159.53,15.9704]
[1724664957399,1.56670145,159.61,159.53,15.9704]
[1724664957699,1.56670151,159.6,159.53,15.9704]
[1724664957994,396.5645,159.63,159.53,15.9704]
[1724664958297,396.5645,159.63,159.54,20.0]
[1724664959183,6.2649,159.62,159.54,20.0]
[1724664959388,1.56666322,159.61,159.54,20.0]
[1724664959694,1.56666367,159.6,159.54,20.0]
[1724664960087,39.3170311,159.61,159.52,20.0]
[1724664960401,37.75015225,159.61,159.53,1.25335217]
[1724664960595,1.56669933,159.6,159.52,20.0]
[1724664960898,1.56669933,159.6,159.49,15.8164]
[1724664961097,7.83239933,159.6,159.49,15.8164]
[1724664961401,6.2664,159.58,159.49,15.8164]
[1724664961575,1.56705588,159.57,159.49,15.8164]
[1724664962117,7.83395588,159.57,159.47,6.3615]
[1724664962501,7.83395588,159.57,159.45,15.1263]
[1724664963000,1.56705588,159.57,159.45,15.1263]
[1724664963199,390.3,159.6,159.47,37.75015225]
[1724664963408,390.3,159.6,159.48,45.0]
[1724664963898,1.5669378,159.59,159.48,45.0]
[1724664964316,1.5669378,159.59,159.49,20.0]
[1724664964609,46.5669378,159.59,159.49,20.0]
[1724664964795,1.5669378,159.59,159.46,20.0]
[1724664964977,7.8329378,159.59,159.46,20.0]
[1724664965391,1.5669378,159.59,159.46,20.0]
[1724664965796,1.5669378,159.59,159.47,45.0]
[1724664966005,7.8330378,159.59,159.48,20.0]
[1724664966196,390.3,159.58,159.49,45.0]
[1724664966411,1.56705457,159.57,159.5,20.0]
[1724664966913,6.2677,159.55,159.45,15.1263]
[1724664967222,1.5673824,159.54,159.45,15.1263]
[1724664967517,390.3,159.56,159.46,1.25390592]
[1724664967727,390.3,159.56,159.45,15.1263]
[1724664968106,390.3,159.56,159.46,65.0]
[1724664969656,1.56691011,159.55,159.46,65.0]
[1724664969923,390.3,159.56,159.46,65.0]
[1724664969924,1.56728327,159.54,159.46,20.0]
[1724664970296,1.56722428,159.55,159.46,20.0]
[1724664971305,1.56722428,159.55,159.47,45.0]
[1724664971511,390.3,159.56,159.48,20.0]
[1724664971713,390.3,159.56,159.49,45.0]
[1724664971943,405.9098,159.64,159.51,37.75015225]
[1724664972230,405.9098,159.64,159.49,65.0]
[1724664972231,390.3,159.64,159.54,54.19565225]
[1724664972526,8.012383,159.63,159.55,65.0]
[1724664972928,6.4461,159.63,159.55,65.0]
[1724664974245,390.3,159.64,159.55,65.0]
[1724664974413,390.3,159.66,159.55,65.0]
[1724664974618,1.56628564,159.65,159.55,65.0]
[1724664974835,1.56628564,159.64,159.55,65.0]
[1724664975223,1.56628564,159.64,159.55,20.0]
[1724664975430,390.3,159.66,159.56,1.25323123]
[1724664975636,390.3,159.66,159.57,1.25312893]
[1724664975937,390.3,159.66,159.56,45.0]
[1724664976141,390.3,159.66,159.57,20.0]
[1724664976343,6.6285,159.67,159.58,46.25287648]
[1724664976512,6.6285,159.67,159.59,20.0]
[1724664976717,6.6285,159.67,159.6,45.0]
[1724664977240,390.3,159.69,159.61,1.25278331]
[1724664978340,37.75015225,159.67,159.54,16.4455]
[1724664978725,1.56609815,159.68,159.54,54.19565225]
[1724664979028,1.56609892,159.67,159.54,54.19565225]
[1724664979633,1.56609892,159.67,159.55,65.0]
[1724664979818,39.31625117,159.67,159.55,65.0]
[1724664980644,45.57915117,159.67,159.55,65.0]
[1724664981042,390.3,159.66,159.54,16.4455]
[1724664981232,1.56645311,159.65,159.54,16.4455]
[1724664981434,1.56645311,159.64,159.54,16.4455]
[1724664981646,390.3,159.66,159.54,16.4455]
[1724664982164,37.75015225,159.64,159.54,16.4455]
[1724664982459,1.56657557,159.63,159.54,16.4455]
[1724664982659,7.83097557,159.63,159.52,6.0218]
[1724664982970,1.56657557,159.63,159.53,45.0]
[1724664983361,1.56657557,159.63,159.54,20.0]
[1724664983663,1.56657557,159.63,159.55,45.0]
[1724664983964,390.3,159.64,159.55,45.0]
[1724664984136,390.3,159.64,159.56,20.0]
[1724664984459,390.3,159.64,159.57,1.25302566]
[1724664984636,390.3,159.64,159.56,20.0]
[1724664984837,390.3,159.64,159.57,45.0]
[1724664985041,390.3,159.64,159.58,21.25294127]
[1724664985546,1.56612117,159.63,159.58,20.0]
[1724664985744,1.56612117,159.63,159.52,6.0218]
[1724664986059,1.56612117,159.63,159.53,65.0]
[1724664987037,1.56650825,159.62,159.52,6.0218]
[1724664987239,1.56650825,159.62,159.46,6.38512744]
[1724664987240,7.85160825,159.62,159.51,3.47550931]
[1724664987549,6.2851,159.62,159.52,1.25346476]
[1724664987942,7.85173961,159.62,159.51,3.47570725]
[1724664988550,1.56652574,159.61,159.51,48.47570725]
[1724664988858,1.56652574,159.61,159.51,45.0]
[1724664989351,7.851578,159.62,159.52,20.0]
[1724664989660,7.851578,159.62,159.53,45.0]
[1724664989661,6.2851,159.62,159.53,45.0]
[1724664989836,6.2851,159.62,159.54,20.0]